fUST/lending_fUST_20251010
["ID","MTS","AMOUNT","RATE_DAILY","PERIOD"]
[390441457,1760046645100,-500.0,0.00016712,2]
[390441458,1760046645109,-500.0,0.00016712,2]
[390441459,1760046645119,-500.0,0.00016712,2]
[390441460,1760046645128,-500.0,0.00016712,2]
[390441461,1760046645137,-300.0,0.00016766,2]
[390441462,1760046645147,-300.0,0.00016766,2]
[390441463,1760046645157,-300.0,0.00016766,2]
[390441464,1760046645166,-300.0,0.00016766,2]
[390441465,1760046645180,-300.0,0.00016766,2]
[390441466,1760046645189,-300.0,0.00016766,2]
[390441467,1760046645199,-300.0,0.00016766,2]
[390441468,1760046645208,-300.0,0.00016766,2]
[390441469,1760046645219,-300.0,0.00016766,2]
[390441470,1760046645229,-300.0,0.00016766,2]
[390441471,1760046645239,-300.0,0.00016766,2]
[390441472,1760046645248,-300.0,0.00016766,2]
[390441473,1760046645260,-300.0,0.00016766,2]
[390441474,1760046645269,-300.0,0.00016766,2]
[390441475,1760046645278,-300.0,0.00016766,2]
[390441476,1760046645288,-600.0,0.00016766,2]
[390441477,1760046645297,-595.5495834,0.000168,2]
[390441478,1760046645306,-566.12121495,0.00016836,2]
[390441479,1760046645315,-1135.0,0.00016841,2]
[390441480,1760046645324,-500.0,0.00016886,2]
[390441481,1760046645333,-1135.0,0.00016947,2]
[390441482,1760046645342,-1135.0,0.00016958,2]
[390441483,1760046645351,-500.0,0.00016986,2]
[390441484,1760046645360,-500.0,0.00016986,2]
[390441485,1760046645368,-500.0,0.00016986,2]
[390441486,1760046645377,-500.0,0.00016986,2]
[390441487,1760046645386,-237.18,0.00016986,2]
[390441488,1760046645396,-360.60741797,0.00016986,2]
[390441489,1760046645405,-183.26,0.00016986,2]
[390441490,1760046645414,-500.0,0.00016986,2]
[390441491,1760046645423,-500.0,0.00016986,2]
[390441492,1760046645433,-500.0,0.00016986,2]
[390441493,1760046645442,-500.0,0.00016986,2]
[390441494,1760046645451,-517.68,0.00016986,2]
[390441495,1760046645460,-500.0,0.00016986,2]
[390441496,1760046645469,-500.0,0.00016986,2]
[390441497,1760046645478,-500.0,0.00016986,2]
[390441498,1760046645487,-500.0,0.00016986,2]
[390441499,1760046645496,-500.0,0.00016986,2]
[390441500,1760046645505,-500.0,0.00016986,2]
[390441502,1760046645515,-500.0,0.00016986,2]
[390441504,1760046645524,-602.72,0.00016986,2]
[390441506,1760046645533,-500.0,0.00016986,2]
[390441508,1760046645542,-507.98,0.00016986,2]
[390441510,1760046645551,-500.0,0.00016986,2]
[390441512,1760046645560,-500.0,0.00016986,2]
[390441514,1760046645569,-1615.31,0.00016986,2]
[390441516,1760046645578,-500.0,0.00016986,2]
[390441518,1760046645587,-298.4,0.00016986,2]
[390441520,1760046645596,-1542.96,0.00016986,2]
[390441522,1760046645605,-500.0,0.00016986,2]
[390441524,1760046645614,-500.0,0.00016986,2]
[390441525,1760046645623,-795.47,0.00016986,2]
[390441527,1760046645633,-500.0,0.00016986,2]
[390441530,1760046645643,-708.16,0.00016986,2]
[390441531,1760046645652,-406.28,0.00016986,2]
[390441534,1760046645662,-500.0,0.00016986,2]
[390441536,1760046645672,-500.0,0.00016986,2]
[390441538,1760046645681,-500.0,0.00016986,2]
[390441539,1760046645692,-500.0,0.00016986,2]
[390441542,1760046645702,-500.0,0.00016986,2]
[390441544,1760046645711,-500.0,0.00016986,2]
[390441546,1760046645725,-500.0,0.00016986,2]
[390441549,1760046645737,-500.0,0.00016986,2]
[390441550,1760046645746,-513.6,0.00016986,2]
[390441552,1760046645755,-500.0,0.00016986,2]
[390441554,1760046645764,-745.69,0.00016986,2]
[390441555,1760046645774,-500.0,0.00016986,2]
[390441556,1760046645783,-500.0,0.00016986,2]
[390441558,1760046645794,-500.0,0.00016986,2]
[390441560,1760046645803,-500.0,0.00016986,2]
[390441562,1760046645812,-500.0,0.00016986,2]
[390441564,1760046645822,-500.0,0.00016986,2]
[390441566,1760046645831,-627.48,0.00016986,2]
[390441568,1760046645841,-200.11,0.00016986,2]
[390441570,1760046645850,-500.0,0.00016986,2]
[390441572,1760046645859,-500.0,0.00016986,2]
[390441574,1760046645869,-500.0,0.00016986,2]
[390441576,1760046645879,-2506.61,0.00016986,2]
[390441578,1760046645888,-500.0,0.00016986,2]
[390441579,1760046645897,-500.0,0.00016986,2]
[390441581,1760046645908,-199.98,0.00016986,2]
[390441584,1760046645917,-368.71,0.00016986,2]
[390441585,1760046645928,-500.0,0.00016986,2]
[390441587,1760046645937,-3736.97,0.00016986,2]
[390441589,1760046645946,-500.0,0.00016986,2]
[390441591,1760046645956,-958.27,0.00016986,2]
[390441594,1760046645965,-500.0,0.00016986,2]
[390441595,1760046645974,-500.0,0.00016986,2]
[390441597,1760046645984,-500.0,0.00016986,2]
[390441600,1760046645993,-574.12,0.00016986,2]
[390441602,1760046646002,-500.0,0.00016986,2]
[390441603,1760046646011,-6554.23,0.00016986,2]
[390441606,1760046646021,-490.35,0.00016986,2]
[390441607,1760046646030,-361.94,0.00016986,2]
[390441610,1760046646040,-5671.85,0.00016986,2]
[390441612,1760046646049,-500.0,0.00016986,2]
[390441613,1760046646059,-810.45,0.00016986,2]
[390441615,1760046646068,-167.9,0.00016986,2]
[390441616,1760046646078,-1161.07,0.00016986,2]
[390441617,1760046646087,-500.0,0.00016986,2]
[390441618,1760046646096,-500.0,0.00016986,2]
[390441619,1760046646105,-566.68,0.00016986,2]
[390441620,1760046646114,-546.58,0.00016986,2]
[390441621,1760046646123,-500.0,0.00016986,2]
[390441622,1760046646133,-151.0,0.00016986,2]
[390441623,1760046646142,-151.0,0.00016986,2]
[390441625,1760046646152,-500.0,0.00016986,2]
[390441627,1760046646161,-500.0,0.00016986,2]
[390441629,1760046646171,-151.0,0.00016986,2]
[390441631,1760046646183,-658.14,0.00016986,2]
[390441633,1760046646192,-500.0,0.00016986,2]
[390441635,1760046646201,-500.0,0.00016986,2]
[390441637,1760046646210,-690.71,0.00016986,2]
[390441639,1760046646221,-813.58,0.00016986,2]
[390441641,1760046646230,-500.0,0.00016986,2]
[390441643,1760046646239,-352.69,0.00016986,2]
[390441645,1760046646248,-500.0,0.00016986,2]
[390441647,1760046646258,-1811.75,0.00016986,2]
[390441649,1760046646268,-577.38,0.00016986,2]
[390441651,1760046646277,-1097.44,0.00016986,2]
[390441653,1760046646286,-151.0,0.00016986,2]
[390441655,1760046646295,-151.0,0.00016986,2]
[390441657,1760046646304,-500.0,0.00016986,2]
[390441659,1760046646313,-697.96,0.00016986,2]
[390441661,1760046646322,-500.0,0.00016986,2]
[390441663,1760046646331,-151.0,0.00016986,2]
[390441665,1760046646340,-1155.62,0.00016986,2]
[390441667,1760046646349,-572.59,0.00016986,2]
[390441669,1760046646359,-500.0,0.00016986,2]
[390441671,1760046646368,-720.51,0.00016986,2]
[390441673,1760046646378,-577.88,0.00016986,2]
[390441675,1760046646388,-500.0,0.00016986,2]
[390441677,1760046646398,-500.0,0.00016986,2]
[390441679,1760046646407,-4511.55,0.00016986,2]
[390441681,1760046646417,-500.0,0.00016986,2]
[390441683,1760046646426,-2089.19,0.00016986,2]
[390441685,1760046646435,-500.0,0.00016986,2]
[390441687,1760046646444,-500.0,0.00016986,2]
[390441689,1760046646453,-527.46,0.00016986,2]
[390441691,1760046646462,-3236.04,0.00016986,2]
[390441693,1760046646471,-2549.17,0.00016986,2]
[390441695,1760046646480,-566.1,0.00016986,2]
[390441697,1760046646489,-500.0,0.00016986,2]
[390441700,1760046646498,-151.0,0.00016986,2]
[390441702,1760046646508,-500.0,0.00016986,2]
[390441704,1760046646517,-500.0,0.00016986,2]
[390441706,1760046646526,-500.0,0.00016986,2]
[390441708,1760046646535,-151.0,0.00016986,2]
[390441710,1760046646545,-5446.92,0.00016986,2]
[390441712,1760046646553,-642.36,0.00016986,2]
[390441714,1760046646563,-500.0,0.00016986,2]
[390441716,1760046646571,-500.0,0.00016986,2]
[390441718,1760046646580,-500.0,0.00016986,2]
[390441720,1760046646589,-500.0,0.00016986,2]
[390441722,1760046646598,-606.06,0.00016986,2]
[390441724,1760046646607,-500.0,0.00016986,2]
[390441726,1760046646615,-500.0,0.00016986,2]
[390441728,1760046646626,-689.54,0.00016986,2]
[390441730,1760046646634,-613.07,0.00016986,2]
[390441732,1760046646645,-500.0,0.00016986,2]
[390441734,1760046646655,-740.96,0.00016986,2]
[390441736,1760046646665,-151.0,0.00016986,2]
[390441738,1760046646674,-2215.06,0.00016986,2]
[390441740,1760046646683,-879.17,0.00016986,2]
[390441742,1760046646691,-500.0,0.00016986,2]
[390441744,1760046646700,-500.0,0.00016986,2]
[390441746,1760046646710,-500.0,0.00016986,2]
[390441748,1760046646719,-755.62,0.00016986,2]
[390441750,1760046646729,-1191.97,0.00016986,2]
[390441752,1760046646738,-500.0,0.00016986,2]
[390441754,1760046646747,-151.0,0.00016986,2]
[390441756,1760046646756,-793.19,0.00016986,2]
[390441762,1760046646805,-500.0,0.00016986,2]
[390441764,1760046646815,-2184.18,0.00016986,2]
[390441766,1760046646824,-161.912305,0.00016986,2]
[390441768,1760046646833,-1009.28,0.00016986,2]
[390441770,1760046646842,-151.0,0.00016986,2]
[390441772,1760046646851,-500.0,0.00016986,2]
[390441774,1760046646859,-500.0,0.00016986,2]
[390441776,1760046646868,-151.0,0.00016986,2]
[390441778,1760046646877,-151.0,0.00016986,2]
[390441780,1760046646887,-151.0,0.00016986,2]
[390441782,1760046646895,-279.607363,0.00016986,2]
[390441784,1760046646904,-239.2,0.00016986,2]
[390441786,1760046646915,-500.0,0.00016986,2]
[390441788,1760046646924,-500.0,0.00016986,2]
[390441790,1760046646933,-279.607363,0.00016986,2]
[390441792,1760046646942,-279.607363,0.00016986,2]
[390441794,1760046646951,-279.607363,0.00016986,2]
[390441796,1760046646959,-500.0,0.00016986,2]
[390441798,1760046646968,-5461.09,0.00016986,2]
[390441800,1760046646977,-500.0,0.00016986,2]
[390441802,1760046646986,-246.51201932,0.00016986,2]
[390441804,1760046646995,-867.4,0.00016986,2]
[390441806,1760046647004,-500.0,0.00016986,2]
[390441808,1760046647013,-500.0,0.00016986,2]
[390441810,1760046647023,-500.0,0.00016986,2]
[390441812,1760046647031,-500.0,0.00016986,2]
[390441814,1760046647040,-593.88,0.00016986,2]
[390441816,1760046647049,-969.38,0.00016986,2]
[390441818,1760046647058,-1029.21,0.00016986,2]
[390441820,1760046647069,-689.08,0.00016986,2]
[390441821,1760046647079,-500.0,0.00016986,2]
[390441823,1760046647088,-500.0,0.00016986,2]
[390441825,1760046647097,-151.21,0.00016986,2]
[390441827,1760046647106,-500.0,0.00016986,2]
[390441829,1760046647115,-543.03,0.00016986,2]
[390441832,1760046647125,-151.0,0.00016986,2]
[390441833,1760046647135,-151.0,0.00016986,2]
[390441835,1760046647145,-672.27,0.00016986,2]
[390441837,1760046647154,-151.0,0.00016986,2]
[390441839,1760046647164,-151.0,0.00016986,2]
[390441841,1760046647176,-500.0,0.00016986,2]
[390441844,1760046647187,-151.0,0.00016986,2]
[390441846,1760046647196,-151.0,0.00016986,2]
[390441848,1760046647205,-2843.57,0.00016986,2]
[390441850,1760046647214,-500.0,0.00016986,2]
[390441851,1760046647223,-1530.93,0.00016986,2]
[390441853,1760046647232,-500.0,0.00016986,2]
[390441855,1760046647241,-682.02,0.00016986,2]
[390441858,1760046647254,-1849.93,0.00016986,2]
[390441860,1760046647264,-151.0,0.00016986,2]
[390441862,1760046647273,-500.0,0.00016986,2]
[390441864,1760046647282,-151.0,0.00016986,2]
[390441866,1760046647292,-188.983668,0.00016986,2]
[390441868,1760046647302,-500.0,0.00016986,2]
[390441869,1760046647312,-2105.49,0.00016986,2]
[390441871,1760046647322,-151.0,0.00016986,2]
[390441874,1760046647331,-500.0,0.00016986,2]
[390441875,1760046647341,-151.0,0.00016986,2]
[390441877,1760046647350,-500.0,0.00016986,2]
[390441879,1760046647359,-500.0,0.00016986,2]
[390441881,1760046647368,-904.53,0.00016986,2]
[390441883,1760046647377,-500.0,0.00016986,2]
[390441885,1760046647386,-1135.0,0.00016994,2]
[390441887,1760046647396,-4195.0,0.00016996,2]
[390441889,1760046647405,-980.0,0.00016996,2]
[390441891,1760046647414,-630.0,0.00016996,2]
[390441893,1760046647423,-2159.0,0.00016996,2]
[390441895,1760046647433,-4276.39070458,0.00017,2]
[390441898,1760046647442,-151.0,0.00017,2]
[390441900,1760046647452,-1259.005486,0.00017,2]
[390441902,1760046647461,-1282.94106,0.00017,2]
[390441904,1760046647471,-1135.0,0.0001703,2]
[390441906,1760046647480,-1135.0,0.00017057,2]
[390441907,1760046647489,-1135.0,0.00017086,2]
[390441909,1760046647500,-600.0,0.00017096,2]
[390441912,1760046647516,-500.0,0.0001716,2]
[390441914,1760046647525,-698.02776747,0.0001716,2]
[390441915,1760046647535,-1135.0,0.00017175,2]
[390441917,1760046647544,-279.6783903,0.00017227,2]
[390441919,1760046647552,-635.00645768,0.00017227,2]
[390441921,1760046647561,-501.34046041,0.00017227,2]
[390441923,1760046647572,-1135.0,0.00017236,2]
[390441925,1760046647581,-152.939898,0.00017236,2]
[390441927,1760046647590,-500.0,0.0001726,2]
[390441929,1760046647600,-561.41,0.0001726,2]
[390441931,1760046647610,-500.0,0.0001726,2]
[390441933,1760046647619,-500.0,0.0001726,2]
[390441935,1760046647629,-517.68,0.0001726,2]
[390441937,1760046647638,-446.1,0.0001726,2]
[390441939,1760046647648,-570.5,0.0001726,2]
[390441941,1760046647657,-500.0,0.0001726,2]
[390441943,1760046647666,-500.0,0.0001726,2]
[390441945,1760046647675,-508.18,0.0001726,2]
[390441947,1760046647684,-500.0,0.0001726,2]
[390441949,1760046647694,-500.0,0.0001726,2]
[390441951,1760046647703,-500.0,0.0001726,2]
[390441953,1760046647712,-500.0,0.0001726,2]
[390441955,1760046647723,-1615.31,0.0001726,2]
[390441956,1760046647733,-500.0,0.0001726,2]
[390441958,1760046647742,-151.0,0.0001726,2]
[390441960,1760046647751,-151.0,0.0001726,2]
[390441963,1760046647761,-1542.96,0.0001726,2]
[390441964,1760046647771,-151.0,0.0001726,2]
[390441966,1760046647780,-604.0,0.0001726,2]
[390441968,1760046647790,-151.0,0.0001726,2]
[390441970,1760046647799,-500.0,0.0001726,2]
[390441972,1760046647808,-795.47,0.0001726,2]
[390441974,1760046647816,-151.0,0.0001726,2]
[390441976,1760046647828,-500.0,0.0001726,2]
[390441978,1760046647837,-708.16,0.0001726,2]
[390441980,1760046647846,-500.0,0.0001726,2]
[390441982,1760046647856,-173.32,0.0001726,2]
[390441984,1760046647865,-500.0,0.0001726,2]
[390441986,1760046647874,-264.45,0.0001726,2]
[390441988,1760046647883,-500.0,0.0001726,2]
[390441990,1760046647891,-500.0,0.0001726,2]
[390441992,1760046647901,-151.0,0.0001726,2]
[390441994,1760046647911,-513.6,0.0001726,2]
[390441996,1760046647921,-500.0,0.0001726,2]
[390441998,1760046647930,-745.69,0.0001726,2]
[390442000,1760046647939,-500.0,0.0001726,2]
[390442002,1760046647948,-276.72,0.0001726,2]
[390442004,1760046647957,-500.0,0.0001726,2]
[390442006,1760046647967,-151.8,0.0001726,2]
[390442008,1760046647977,-500.0,0.0001726,2]
[390442010,1760046647987,-295.28,0.0001726,2]
[390442012,1760046647996,-500.0,0.0001726,2]
[390442014,1760046648007,-500.0,0.0001726,2]
[390442016,1760046648016,-2506.61,0.0001726,2]
[390442018,1760046648025,-500.0,0.0001726,2]
[390442020,1760046648034,-3736.97,0.0001726,2]
[390442022,1760046648043,-500.0,0.0001726,2]
[390442024,1760046648052,-958.27,0.0001726,2]
[390442026,1760046648061,-197.8,0.0001726,2]
[390442028,1760046648071,-500.0,0.0001726,2]
[390442030,1760046648080,-6554.23,0.0001726,2]
[390442032,1760046648089,-5671.85,0.0001726,2]
[390442033,1760046648099,-500.0,0.0001726,2]
[390442035,1760046648108,-810.45,0.0001726,2]
[390442037,1760046648117,-1161.07,0.0001726,2]
[390442039,1760046648126,-159.74,0.0001726,2]
[390442042,1760046648139,-566.68,0.0001726,2]
[390442044,1760046648149,-500.0,0.0001726,2]
[390442046,1760046648158,-658.14,0.0001726,2]
[390442047,1760046648167,-690.71,0.0001726,2]
[390442049,1760046648181,-813.58,0.0001726,2]
[390442051,1760046648190,-1811.75,0.0001726,2]
[390442053,1760046648200,-577.38,0.0001726,2]
[390442055,1760046648209,-1097.44,0.0001726,2]
[390442057,1760046648220,-500.0,0.0001726,2]
[390442059,1760046648229,-500.0,0.0001726,2]
[390442060,1760046648239,-1155.62,0.0001726,2]
[390442062,1760046648249,-572.59,0.0001726,2]
[390442064,1760046648259,-325.74,0.0001726,2]
[390442066,1760046648268,-720.51,0.0001726,2]
[390442068,1760046648279,-577.88,0.0001726,2]
[390442070,1760046648288,-697.96,0.0001726,2]
[390442072,1760046648297,-500.0,0.0001726,2]
[390442073,1760046648307,-4511.55,0.0001726,2]
[390442075,1760046648316,-2089.19,0.0001726,2]
[390442077,1760046648325,-500.0,0.0001726,2]
[390442079,1760046648334,-527.46,0.0001726,2]
[390442081,1760046648343,-3236.04,0.0001726,2]
[390442083,1760046648353,-2549.17,0.0001726,2]
[390442085,1760046648362,-566.1,0.0001726,2]
[390442087,1760046648371,-500.0,0.0001726,2]
[390442089,1760046648382,-500.0,0.0001726,2]
[390442091,1760046648391,-500.0,0.0001726,2]
[390442093,1760046648400,-5446.92,0.0001726,2]
[390442095,1760046648409,-500.0,0.0001726,2]
[390442096,1760046648418,-500.0,0.0001726,2]
[390442098,1760046648428,-606.06,0.0001726,2]
[390442100,1760046648437,-648.84685014,0.0001726,2]
[390442102,1760046648447,-689.54,0.0001726,2]
[390442104,1760046648456,-613.07,0.0001726,2]
[390442106,1760046648465,-500.0,0.0001726,2]
[390442108,1760046648475,-740.96,0.0001726,2]
[390442110,1760046648485,-2215.06,0.0001726,2]
[390442112,1760046648494,-879.17,0.0001726,2]
[390442114,1760046648522,-500.0,0.0001726,2]
[390442116,1760046648531,-235.02454287,0.0001726,2]
[390442118,1760046648541,-755.62,0.0001726,2]
[390442120,1760046648550,-1191.97,0.0001726,2]
[390442122,1760046648560,-500.0,0.0001726,2]
[390442124,1760046648571,-793.19,0.0001726,2]
[390442126,1760046648581,-219.86448979,0.0001726,2]
[390442128,1760046648590,-2184.18,0.0001726,2]
[390442130,1760046648600,-1009.28,0.0001726,2]
[390442132,1760046648610,-500.0,0.0001726,2]
[390442134,1760046648619,-500.0,0.0001726,2]
[390442136,1760046648629,-500.0,0.0001726,2]
[390442138,1760046648638,-500.0,0.0001726,2]
[390442140,1760046648648,-5461.09,0.0001726,2]
[390442142,1760046648657,-867.4,0.0001726,2]
[390442144,1760046648666,-593.88,0.0001726,2]
[390442145,1760046648676,-969.38,0.0001726,2]
[390442147,1760046648685,-1029.21,0.0001726,2]
[390442149,1760046648695,-689.08,0.0001726,2]
[390442151,1760046648705,-500.0,0.0001726,2]
[390442153,1760046648714,-543.03,0.0001726,2]
[390442155,1760046648723,-672.27,0.0001726,2]
[390442157,1760046648733,-2843.57,0.0001726,2]
[390442159,1760046648742,-500.0,0.0001726,2]
[390442161,1760046648751,-1530.93,0.0001726,2]
[390442163,1760046648761,-500.0,0.0001726,2]
[390442165,1760046648770,-682.02,0.0001726,2]
[390442167,1760046648780,-1849.93,0.0001726,2]
[390442169,1760046648789,-500.0,0.0001726,2]
[390442171,1760046648798,-2105.49,0.0001726,2]
[390442173,1760046648807,-500.0,0.0001726,2]
[390442175,1760046648817,-500.0,0.0001726,2]
[390442177,1760046648826,-500.0,0.0001726,2]
[390442179,1760046648836,-904.53,0.0001726,2]
[390442181,1760046648845,-600.0,0.00017274,2]
[390442182,1760046648855,-1135.0,0.00017289,2]
[390442184,1760046648869,-1135.0,0.00017291,2]
[390442186,1760046648881,-1135.0,0.00017324,2]
[390442188,1760046648891,-151.0,0.00017324,2]
[390442190,1760046648902,-151.0,0.00017324,2]
[390442192,1760046648911,-151.0,0.00017324,2]
[390442194,1760046648921,-160.311952,0.00017324,2]
[390442196,1760046648931,-1135.0,0.00017332,2]
[390442198,1760046648941,-1135.0,0.00017353,2]
[390442200,1760046648951,-168.01695143,0.00017395,2]
[390442202,1760046648961,-500.0,0.00017434,2]
[390442203,1760046648971,-639.96311255,0.00017436,2]
[390442205,1760046648981,-1135.0,0.0001744,2]
[390442207,1760046648992,-375.22976713,0.00017447,2]
[390442210,1760046649003,-500.0,0.00017447,2]
[390442211,1760046649013,-500.0,0.00017447,2]
[390442213,1760046649023,-500.0,0.00017447,2]
[390442215,1760046649032,-500.0,0.00017447,2]
[390442217,1760046649041,-521.91414941,0.00017447,2]
[390442219,1760046649051,-500.0,0.00017447,2]
[390442221,1760046649061,-200.26463029,0.00017447,2]
[390442223,1760046649071,-500.0,0.00017447,2]
[390442225,1760046649081,-200.26101951,0.00017447,2]
[390442227,1760046649091,-500.0,0.00017447,2]
[390442229,1760046649101,-183.62263881,0.00017447,2]
[390442231,1760046649111,-324.61044938,0.00017447,2]
[390442232,1760046649120,-500.0,0.00017447,2]
[390442233,1760046649129,-161.84933956,0.00017447,2]
[390442234,1760046649138,-261.47093422,0.00017447,2]
[390442235,1760046649148,-500.0,0.00017447,2]
[390442236,1760046649158,-183.09846624,0.00017447,2]
[390442237,1760046649168,-159.69156247,0.00017447,2]
[390442238,1760046649181,-500.0,0.00017447,2]
[390442239,1760046649191,-500.0,0.00017447,2]
[390442240,1760046649201,-503.42885229,0.00017447,2]
[390442242,1760046649210,-500.0,0.00017447,2]
[390442243,1760046649221,-500.0,0.00017447,2]
[390442245,1760046649230,-500.0,0.00017447,2]
[390442247,1760046649240,-500.0,0.00017447,2]
[390442249,1760046649251,-500.0,0.00017447,2]
[390442251,1760046649260,-500.0,0.00017447,2]
[390442252,1760046649270,-500.46384327,0.00017447,2]
[390442253,1760046649280,-500.0,0.00017447,2]
[390442255,1760046649289,-500.76859461,0.00017447,2]
[390442257,1760046649299,-500.0,0.00017447,2]
[390442259,1760046649309,-500.0,0.00017447,2]
[390442260,1760046649319,-500.0,0.00017447,2]
[390442261,1760046649328,-500.0,0.00017447,2]
[390442262,1760046649339,-500.0,0.00017447,2]
[390442263,1760046649348,-500.0,0.00017447,2]
[390442264,1760046649358,-500.0,0.00017447,2]
[390442265,1760046649368,-500.0,0.00017447,2]
[390442266,1760046649377,-207.86483614,0.00017447,2]
[390442267,1760046649387,-500.60004698,0.00017447,2]
[390442268,1760046649397,-500.37089015,0.00017447,2]
[390442269,1760046649407,-248.58073895,0.00017451,2]
[390442270,1760046649416,-600.0,0.00017452,2]
[390442271,1760046649426,-342.45822763,0.00017474,2]
[390442272,1760046649435,-500.0,0.00017474,2]
[390442273,1760046649444,-169.37416212,0.00017474,2]
[390442274,1760046649454,-151.0,0.00017484,2]
[390442275,1760046649464,-151.0,0.00017484,2]
[390442276,1760046649473,-151.0,0.00017484,2]
[390442277,1760046649483,-151.0,0.00017484,2]
[390442278,1760046649492,-279.607363,0.00017484,2]
[390442279,1760046649502,-279.607363,0.00017484,2]
[390442280,1760046649511,-279.607363,0.00017484,2]
[390442281,1760046649521,-279.607363,0.00017484,2]
[390442282,1760046649531,-151.0,0.00017484,2]
[390442283,1760046649540,-151.0,0.00017484,2]
[390442284,1760046649550,-151.0,0.00017484,2]
[390442285,1760046649560,-151.0,0.00017484,2]
[390442286,1760046649569,-151.0,0.00017484,2]
[390442287,1760046649579,-205.53056,0.00017484,2]
[390442288,1760046649589,-151.0,0.00017498,2]
[390442289,1760046649599,-160.0,0.00017498,2]
[390442290,1760046649609,-234.29301719,0.00017498,2]
[390442291,1760046649619,-160.0,0.00017498,2]
[390442292,1760046649628,-402.15066402,0.00017498,2]
[390442293,1760046649638,-160.0,0.00017498,2]
[390442294,1760046649648,-417.15472785,0.00017498,2]
[390442295,1760046649657,-160.0,0.00017498,2]
[390442296,1760046649666,-500.0,0.00017498,2]
[390442297,1760046649676,-214.18640301,0.00017498,2]
[390442298,1760046649685,-500.0,0.00017498,2]
[390442299,1760046649695,-500.0,0.00017498,2]
[390442300,1760046649705,-500.0,0.00017498,2]
[390442301,1760046649714,-500.0,0.00017498,2]
[390442302,1760046649724,-500.0,0.00017498,2]
[390442303,1760046649733,-500.0,0.00017498,2]
[390442304,1760046649743,-500.0,0.00017498,2]
[390442305,1760046649752,-500.38409465,0.00017498,2]
[390442306,1760046649762,-500.0,0.00017498,2]
[390442307,1760046649772,-642.46180802,0.00017498,2]
[390442308,1760046649781,-500.0,0.00017498,2]
[390442309,1760046649791,-496.20570111,0.00017498,2]
[390442310,1760046649800,-500.0,0.00017498,2]
[390442311,1760046649810,-510.58546687,0.00017498,2]
[390442312,1760046649820,-500.0,0.00017498,2]
[390442313,1760046649830,-1161.83041393,0.000175,2]
[390442314,1760046649841,-165.21529698,0.00017502,2]
[390442315,1760046649851,-500.0,0.00017502,2]
[390442316,1760046649861,-500.0,0.00017502,2]
[390442317,1760046649870,-500.27369446,0.00017502,2]
[390442318,1760046649880,-500.0,0.00017502,2]
[390442319,1760046649890,-500.0,0.00017502,2]
[390442320,1760046649899,-500.0,0.00017502,2]
[390442321,1760046649908,-500.0,0.00017502,2]
[390442322,1760046649918,-500.0,0.00017502,2]